bitfinex-derivatives/quotes_SOLF0:USTF0_20250522
["timestamp","ask_amount","ask_price","bid_price","bid_amount"]
[1747941752978,5.62731638,178.99,178.97,106.16]
[1747941753172,0.04191638,178.99,178.97,106.16]
[1747941753476,0.04191638,178.99,178.97,111.7456]
[1747941753869,0.04191638,178.99,178.97,106.16]
[1747941754767,0.04191638,178.99,178.98,5.5855]
[1747941755883,0.04191638,178.99,178.97,111.7457]
[1747941756486,0.04191638,178.99,178.98,5.5855]
[1747941757372,0.04191638,178.99,178.97,111.7457]
[1747941757786,0.04191638,178.99,178.97,106.16]
[1747941758284,0.04191638,178.99,178.97,111.7457]
[1747941758986,0.04191638,178.99,178.97,106.16]
[1747941759778,0.04191638,178.99,178.96,0.04191115]
[1747941760587,5.62721638,178.99,178.96,0.04191115]
[1747941761085,0.04191638,178.99,178.96,0.04191115]
[1747941761479,0.04191638,178.99,178.98,5.5855]
[1747941761982,5.13551853,179.08,179.04,5.5836]
[1747941762183,5.13551853,179.08,178.96,0.04191115]
[1747941762184,5.13551853,179.08,179.0,113.44]
[1747941762579,120.58821853,179.1,179.02,5.584]
[1747941762991,0.04045059,179.08,179.04,0.03528469]
[1747941763885,5.5833,179.05,179.04,0.03528469]
[1747941775095,5.5857,178.98,178.96,113.34]
[1747941775597,5.5858,178.97,178.96,113.34]
[1747941776196,0.04211454,178.98,178.95,0.04215438]
[1747941776496,0.03847415,178.98,178.95,0.04215438]
[1747941776798,5.586,178.97,178.95,0.04215438]
[1747941777296,0.03847415,178.98,178.95,0.04215438]
[1747941778400,5.5861,178.96,178.95,0.04215438]
[1747941782390,5.5861,178.96,178.88,4.35680467]
[1747941782391,5.5883,178.89,178.88,117.71680467]
[1747941782794,5.5883,178.89,178.88,4.35680467]
[1747941783099,8.98687494,178.89,178.84,8.65286363]
[1747941783302,2.08031212,178.88,178.85,0.042845]
[1747941783996,5.5892,178.86,178.85,0.042845]
[1747941784691,2.08031212,178.88,178.85,0.042845]
[1747941785191,5.5892,178.87,178.85,0.042845]
[1747941786002,7.66891212,178.88,178.85,0.042845]
[1747941787103,5.589,178.87,178.85,0.042845]
[1747941787402,2.08031212,178.88,178.85,0.042845]
[1747941788299,5.5889,178.87,178.85,0.042845]
[1747941790310,2.08031212,178.88,178.85,0.042845]
[1747941791614,5.5892,178.86,178.85,0.042845]
[1747941798820,5.5892,178.86,178.85,4.5e-05]
[1747941799021,5.5908,178.81,178.79,113.36]
[1747941799220,5.5908,178.81,178.77,5.5917]
[1747941799618,5.5908,178.81,178.76,596.0]
[1747941799820,5.5908,178.81,178.78,5.5915]
[1747941800020,5.63268158,178.81,178.78,5.6293883]
[1747941801121,5.63268158,178.81,178.79,5.5914]
[1747941801326,0.04188158,178.81,178.78,0.0378883]
[1747941801925,0.04188158,178.81,178.79,5.5914]
[1747941802920,0.04188158,178.81,178.78,0.0378883]
[1747941803121,0.04188158,178.81,178.8,5.5911]
[1747941804726,0.04188158,178.81,178.79,5.5914]
[1747941804927,0.04188158,178.81,178.78,0.0378883]
[1747941806119,5.5914,178.79,178.78,0.0378883]
[1747941807628,113.44188158,178.81,178.69,113.4]
[1747941807828,1.8846,178.8,178.69,113.4]
[1747941808227,5.5925,178.76,178.69,113.4]
[1747941808526,5.5925,178.76,178.71,0.04131404]
[1747941808527,0.0411607,178.74,178.71,0.04131404]
[1747941809022,0.0411607,178.74,178.72,5.5933]
[1747941810130,0.0411607,178.74,178.73,5.5933]
[1747941812831,0.0411607,178.74,178.71,0.04131404]
[1747941816535,5.5935,178.73,178.71,0.04131404]
[1747941817533,5.6342607,178.74,178.71,5.63511404]
[1747941818433,5.5933,178.73,178.71,5.63511404]
[1747941818736,5.5933,178.73,178.71,0.04131404]
[1747941819235,5.6341607,178.74,178.71,5.63521404]
[1747941820031,5.6341607,178.74,178.71,0.04131404]
[1747941821740,5.6341607,178.74,178.71,5.63511404]
[1747941822227,5.5933,178.73,178.71,0.04131404]
[1747941822935,5.5936,178.72,178.71,0.04131404]
[1747941823240,0.0411607,178.74,178.71,0.04131404]
[1747941823635,5.5936,178.73,178.71,0.04131404]
[1747941827036,5.6343607,178.74,178.71,0.04131404]
[1747941828440,5.5934,178.73,178.71,0.04131404]
[1747941829333,5.5936,178.72,178.71,0.04131404]
[1747941830048,5.5952,178.67,178.63,113.38]
[1747941830238,113.38,178.73,178.63,113.38]
[1747941830540,113.38,178.73,178.63,118.9763]
[1747941830741,113.38,178.73,178.63,113.38]
[1747941830930,113.38,178.73,178.66,0.04001989]
[1747941831136,5.5951,178.68,178.66,0.04001989]
[1747941832548,5.5952,178.67,178.66,0.04001989]
[1747941838149,5.595,178.68,178.66,0.04001989]
[1747941838350,113.4,178.69,178.66,0.04001989]
[1747941838851,5.5951,178.68,178.66,0.04001989]
[1747941839446,113.4,178.69,178.66,5.63541989]
[1747941839650,113.4,178.69,178.66,0.04001989]
[1747941840552,118.9948,178.69,178.66,0.04001989]
[1747941841552,5.5949,178.68,178.66,0.04001989]
[1747941842147,0.03539444,178.7,178.66,0.04001989]
[1747941845553,0.03539444,178.7,178.66,5.63531989]
[1747941846654,5.62989444,178.7,178.66,5.63531989]
[1747941847455,5.5945,178.69,178.66,5.63531989]
[1747941847753,0.03539444,178.7,178.67,5.5951]
[1747941848155,5.62959444,178.7,178.67,5.5951]
[1747941848355,0.03539444,178.7,178.66,0.04001989]
[1747941848549,0.03539444,178.7,178.66,1.97691989]
[1747941849557,5.5947,178.69,178.66,7.57221989]
[1747941849762,0.03539444,178.7,178.66,7.57221989]
[1747941851258,5.62969444,178.7,178.66,7.57221989]
[1747941851457,0.03539444,178.7,178.67,5.5951]
[1747941851959,0.03539444,178.7,178.66,0.04001989]
[1747941852354,5.5952,178.67,178.66,0.04001989]
[1747941852756,0.03539444,178.7,178.66,0.04001989]
[1747941853061,5.5946,178.69,178.66,0.04001989]
[1747941853657,5.5949,178.68,178.66,0.04001989]
[1747941855260,0.03539444,178.7,178.66,0.04001989]
[1747941855653,118.55551853,178.77,178.66,113.46001989]
[1747941855853,5.5926,178.76,178.67,3.8367]
[1747941856260,118.55551853,178.77,178.67,3.8367]
[1747941856659,0.04039775,178.74,178.7,0.04292626]
[1747941856860,0.04039775,178.74,178.73,5.5931]
[1747941858162,5.13551853,178.77,178.75,5.5924]
[1747941858358,118.9311,178.8,178.75,5.5924]
[1747941858956,7.02141853,178.83,178.7,113.42]
[1747941859157,0.03632544,178.78,178.75,0.04190855]
[1747941859565,0.03632544,178.78,178.76,5.5921]
[1747941862166,5.5911,178.81,178.76,5.5921]
[1747941862668,113.34,178.84,178.75,0.04190855]
[1747941862863,113.34,178.84,178.75,2.09450855]
[1747941863059,0.03616594,178.81,178.75,2.09450855]
[1747941863261,0.03616594,178.81,178.79,5.5912]
[1747941863568,0.03616594,178.81,178.78,113.32]
[1747941863770,5.13551853,178.87,178.8,5.5911]
[1747941864368,5.13551853,178.87,178.79,5.5914]
[1747941864562,115.2193,178.88,178.79,5.5914]
[1747941864762,0.04220423,178.85,178.82,0.03991382]
[1747941867474,0.04220423,178.85,178.82,5.63031382]
[1747941867772,0.04220423,178.85,178.82,0.03991382]
[1747941868973,5.63170423,178.85,178.82,0.03991382]
[1747941869769,5.59,178.84,178.82,0.03991382]
[1747941870075,0.04220423,178.85,178.82,0.03991382]
[1747941871174,5.5901,178.84,178.82,0.03991382]
[1747941871975,5.63180423,178.85,178.82,0.03991382]
[1747941872673,0.04220423,178.85,178.82,5.63041382]
[1747941872974,0.04220423,178.85,178.82,0.03991382]
[1747941873875,5.5902,178.83,178.82,0.03991382]
[1747941878180,5.5902,178.83,178.82,1.382e-05]
[1747941878781,5.592,178.77,178.76,113.26]
[1747941879576,1.8794,178.83,178.72,228.9615]
[1747941879778,0.03772686,178.79,178.76,0.03972131]
[1747941880181,5.592,178.77,178.76,0.03972131]
[1747941885989,0.03772686,178.79,178.76,0.03972131]
[1747941886887,5.592,178.77,178.76,0.03972131]
[1747941901702,0.03772686,178.79,178.76,0.03972131]
[1747941902301,5.5918,178.78,178.76,0.03972131]
[1747941902597,0.03772686,178.79,178.76,0.03972131]
[1747941903100,0.03772686,178.79,178.76,5.63182131]
[1747941903399,0.03772686,178.79,178.76,0.03972131]
[1747941904003,5.62922686,178.79,178.76,0.03972131]
[1747941904301,0.03772686,178.79,178.76,0.03972131]
[1747941904505,0.03772686,178.79,178.78,5.5917]
[1747941905309,0.03772686,178.79,178.77,113.3]
[1747941906609,0.03772686,178.79,178.78,5.5917]
[1747941910311,0.03772686,178.79,178.76,0.03972131]
[1747941910703,5.5917,178.78,178.76,0.03972131]
[1747941911011,0.03772686,178.79,178.76,0.03972131]
[1747941911309,5.592,178.77,178.76,0.03972131]
[1747941912212,5.62942686,178.79,178.76,0.03972131]
[1747941912412,0.03772686,178.79,178.76,0.03972131]
[1747941913315,0.03772686,178.79,178.78,5.5917]
[1747941919012,0.03772686,178.79,178.77,1.9874]
[1747941919219,0.03772686,178.79,178.76,0.03972131]
[1747941920217,0.03772686,178.79,178.77,5.592]
[1747941921421,0.03772686,178.79,178.76,0.03972131]
[1747941921921,5.62922686,178.79,178.76,0.03972131]
[1747941922419,5.5919,178.78,178.76,0.03972131]
[1747941922722,0.03772686,178.79,178.76,0.03972131]
[1747941923222,5.62922686,178.79,178.76,5.63182131]
[1747941923522,0.03772686,178.79,178.76,0.03972131]
[1747941924122,5.62912686,178.79,178.76,5.63192131]
[1747941925325,5.5917,178.78,178.76,5.63192131]
[1747941925522,0.03772686,178.79,178.76,0.03972131]
[1747941925918,5.592,178.77,178.76,0.03972131]
[1747941927922,0.03772686,178.79,178.76,0.03972131]
[1747941928928,0.03772686,178.79,178.78,5.5917]
[1747941933432,0.03772686,178.79,178.77,1.9597]
[1747941933731,0.03772686,178.79,178.76,0.03972131]
[1747941934131,0.03772686,178.79,178.76,5.63182131]
[1747941934430,0.03772686,178.79,178.76,0.03972131]
[1747941934620,0.03772686,178.79,178.77,5.592]
[1747941938132,0.03772686,178.79,178.78,5.5917]
[1747941939535,0.03772686,178.79,178.78,118.8517]
[1747941939736,5.13551853,178.88,178.78,113.26]
[1747941940033,5.13551853,178.88,178.79,2.0005]
[1747941940233,5.5894,178.86,178.82,5.5902]
[1747941940430,5.13551853,178.88,178.82,5.5902]
[1747941940630,0.0387406,178.87,178.83,0.03966047]
[1747941940832,5.5893,178.86,178.83,0.03966047]
[1747941941336,5.6277406,178.87,178.83,5.62976047]
[1747941942133,5.5894,178.86,178.83,0.03966047]
[1747941942335,0.0387406,178.87,178.83,0.03966047]
[1747941943336,5.5896,178.85,178.83,0.03966047]
[1747941943923,5.5912,178.8,178.78,117.61096819]
[1747941944124,8.98687494,178.85,178.78,4.35096819]
[1747941944324,8.98687494,178.81,178.73,8.65286363]
[1747941944530,5.592,178.77,178.73,8.65286363]
[1747941944739,115.3094,178.8,178.75,4.37009208]
[1747941945037,0.04014083,178.79,178.76,0.03537958]
[1747941945238,5.592,178.77,178.76,0.03537958]
[1747941950842,0.04014083,178.79,178.76,0.03537958]
[1747941952543,5.5918,178.78,178.76,0.03537958]
[1747941953043,5.592,178.77,178.76,0.03537958]
[1747941955053,5.5918,178.78,178.76,0.03537958]
[1747941956247,5.592,178.77,178.76,0.03537958]
[1747941956742,0.04014083,178.79,178.76,0.03537958]
[1747941957443,5.5919,178.78,178.76,0.03537958]
[1747941958350,5.592,178.77,178.76,0.03537958]
[1747941961057,5.5919,178.78,178.76,0.03537958]
[1747941961258,0.04014083,178.79,178.76,0.03537958]
[1747941961657,0.04014083,178.79,178.78,5.5917]
[1747941962266,0.04014083,178.79,178.77,5.5919]
[1747941962967,0.04014083,178.79,178.76,5.62747958]
[1747941963263,0.04014083,178.79,178.76,0.03537958]
[1747941963866,0.04014083,178.79,178.77,5.5918]
[1747941964062,0.04014083,178.79,178.76,0.03537958]
[1747941964561,0.04014083,178.79,178.78,5.5917]
[1747941964768,0.04014083,178.79,178.76,0.03537958]
[1747941965070,5.592,178.78,178.76,0.03537958]
[1747941965366,0.04014083,178.79,178.76,0.03537958]
[1747941965768,0.04014083,178.79,178.77,5.592]
[1747941966272,0.04014083,178.79,178.78,5.5917]
[1747941968268,0.04014083,178.79,178.77,5.5919]
[1747941970075,5.63164083,178.79,178.76,7.57087958]
[1747941970267,0.04014083,178.79,178.76,1.97857958]
[1747941971172,0.04014083,178.79,178.77,5.5918]
[1747941973173,5.63164083,178.79,178.76,7.57077958]
[1747941973771,5.592,178.78,178.76,1.97857958]
[1747941973970,0.04014083,178.79,178.76,1.97857958]
[1747941974167,0.04014083,178.79,178.76,0.03537958]
[1747941974477,8.98687494,178.78,178.69,5.76787854]
[1747941975379,5.5935,178.73,178.72,0.03792038]
[1747941976279,5.5931,178.74,178.72,0.03792038]
[1747941976479,0.04094429,178.75,178.72,0.03792038]
[1747941976680,0.04094429,178.75,178.72,113.27792038]
[1747941976883,0.04094429,178.75,178.74,5.593]
[1747941977074,118.35551853,178.8,178.73,1.9031]
[1747941977275,118.35551853,178.8,178.73,3.8701]
[1747941977778,118.35551853,178.8,178.73,5.8392]
[1747941977978,123.94671853,178.8,178.73,5.8392]
[1747941978175,0.03973964,178.78,178.73,5.8392]
[1747941978976,0.03973964,178.78,178.76,5.5922]
[1747941979675,0.03973964,178.78,178.73,5.8392]
[1747941979881,0.03973964,178.78,178.77,5.592]
[1747941983388,2.0725,178.88,178.76,113.4380899]
[1747941983681,2.0725,178.88,178.76,113.4]
[1747941983876,2.0725,178.88,178.79,5.5913]
[1747941984280,0.04105832,178.85,178.82,0.03703987]
[1747941984882,5.5902,178.83,178.82,0.03703987]
[1747941993790,5.59,178.84,178.82,0.03703987]
[1747941993987,113.42105832,178.85,178.82,0.03703987]
[1747941994391,5.5899,178.84,178.82,0.03703987]
[1747941995595,5.5902,178.83,178.82,0.03703987]
[1747942005398,5.5902,178.83,178.82,3.987e-05]
[1747942013110,5.15641335,178.84,178.82,3.987e-05]
[1747942013405,0.04105832,178.85,178.82,3.987e-05]
[1747942013608,5.5902,178.83,178.82,3.987e-05]
[1747942014004,0.04105832,178.85,178.82,3.987e-05]
[1747942014307,5.5902,178.83,178.82,3.987e-05]
[1747942022412,5.15641335,178.88,178.82,3.987e-05]
[1747942022718,5.15641335,178.88,178.83,106.26]
[1747942023015,6.8752178,178.9,178.88,5.5885]
[1747942023216,6.8752178,178.9,178.84,1.9961]
[1747942023612,6.8752178,178.9,178.89,5.5883]
[1747942025119,0.04092084,178.91,178.85,0.04057597]
[1747942025120,0.04092084,178.91,178.9,5.588]
[1747942031023,0.04092084,178.91,178.89,0.04287911]
[1747942032125,5.588,178.9,178.89,0.04287911]
[1747942035129,5.62872084,178.91,178.89,0.04287911]
[1747942035331,0.04092084,178.91,178.89,0.04287911]
[1747942036829,5.588,178.9,178.89,0.04287911]
[1747942043331,0.04092084,178.91,178.89,0.04287911]
[1747942043531,113.22092084,178.91,178.89,0.04287911]
[1747942044232,5.588,178.9,178.89,0.04287911]
[1747942045133,113.22092084,178.91,178.89,5.63117911]
[1747942045735,0.04092084,178.91,178.9,5.588]
[1747942071871,0.04092084,178.91,178.9,5.588]
[1747942074974,113.12,178.97,178.94,5.5867]
[1747942075481,118.7059,178.97,178.94,5.5867]
[1747942075978,118.74109193,178.97,178.94,5.62873665]
[1747942076577,118.74109193,178.97,178.95,5.5864]
[1747942076578,113.15519193,178.97,178.95,5.5864]
[1747942076874,113.15519193,178.97,178.94,0.04203665]
[1747942077067,0.03519193,178.97,178.94,0.04203665]
[1747942077377,0.03519193,178.97,178.94,5.62863665]
[1747942078077,0.03519193,178.97,178.94,0.04203665]
[1747942079580,5.5862,178.96,178.94,0.04203665]
[1747942081071,5.5864,178.95,178.94,0.04203665]
[1747942081373,11.33853205,178.95,178.94,0.04203665]
[1747942081578,124.43853205,178.95,178.94,0.04203665]
[1747942083778,118.6864,178.95,178.94,0.04203665]
[1747942084279,113.1,178.95,178.94,0.04203665]
[1747942084577,113.1,178.95,178.94,5.62873665]
[1747942084775,113.1,178.95,178.94,0.04203665]
[1747942085679,118.6864,178.95,178.94,0.04203665]
[1747942093084,7.28420463,178.97,178.94,0.04203665]
[1747942093279,5.21330463,178.97,178.94,0.04203665]
[1747942094179,10.79920463,178.97,178.94,5.62863665]
[1747942094381,0.03519193,178.97,178.94,0.04203665]
[1747942094784,5.5864,178.95,178.94,0.04203665]
[1747942105086,118.6864,178.95,178.94,0.04203665]
[1747942108685,5.5864,178.95,178.94,0.04203665]
[1747942111194,118.2181127,178.96,178.86,4.37151899]
[1747942111195,5.5887,178.88,178.86,4.37151899]
[1747942111390,1.9155,178.95,178.86,4.37151899]
[1747942111698,5.5879,178.91,178.87,5.5887]
[1747942111889,5.75410184,178.92,178.87,5.5887]
[1747942112196,5.5877,178.91,178.88,0.03552607]
[1747942112500,5.6267867,178.91,178.88,0.03552607]
[1747942112692,0.0390867,178.91,178.88,0.03552607]
[1747942114090,5.588,178.9,178.88,0.03552607]
[1747942115705,5.5883,178.89,178.88,0.03552607]
[1747942118002,11.00611186,178.91,178.81,4.37151899]
[1747942118298,5.5901,178.84,178.81,9.96201899]
[1747942118499,113.04,178.86,178.81,9.96201899]
[1747942118995,5.59,178.84,178.82,0.03987997]
[1747942119197,0.03936574,178.85,178.82,0.03987997]
[1747942119497,5.5901,178.84,178.82,0.03987997]
[1747942119698,0.03936574,178.85,178.82,0.03987997]
[1747942120100,5.5899,178.84,178.82,0.03987997]
[1747942121799,5.5901,178.83,178.82,0.03987997]
[1747942123001,8.99162516,178.83,178.73,4.37151899]
[1747942123303,113.08,178.82,178.73,4.37151899]
[1747942123701,113.08,178.82,178.74,5.5928]
[1747942123898,0.03753614,178.8,178.76,0.03915289]
[1747942124202,5.5919,178.78,178.76,0.03915289]
[1747942125500,5.5914,178.79,178.76,5.63135289]
[1747942125700,5.5914,178.79,178.76,0.03915289]
[1747942127800,5.5917,178.78,178.76,0.03915289]
[1747942128996,5.5915,178.79,178.76,0.03915289]
[1747942129397,0.03753614,178.8,178.76,0.03915289]
[1747942129801,0.03753614,178.8,178.78,5.5915]
[1747942131204,0.03753614,178.8,178.79,5.5914]
[1747942131605,0.03753614,178.8,178.76,0.03915289]
[1747942132402,0.03753614,178.8,178.77,5.5917]
[1747942133206,5.62873614,178.8,178.77,5.5917]
[1747942133405,0.03753614,178.8,178.77,5.5917]
[1747942134607,5.5915,178.79,178.77,5.5917]
[1747942135003,0.03753614,178.8,178.77,5.5917]
[1747942135605,0.03753614,178.8,178.76,0.03915289]
[1747942136506,0.03753614,178.8,178.78,5.5914]
[1747942136900,5.62863614,178.8,178.78,5.5914]
[1747942139811,5.62863614,178.8,178.77,5.5919]
[1747942140213,5.62863614,178.8,178.76,0.03915289]
[1747942140408,0.03753614,178.8,178.78,5.5914]
[1747942140907,0.03753614,178.8,178.79,5.5914]
[1747942141111,0.03753614,178.8,178.76,0.03915289]
[1747942141504,0.03753614,178.8,178.78,5.5915]
[1747942142121,5.62863614,178.8,178.78,5.5915]
[1747942142331,5.62863614,178.8,178.77,5.5919]
[1747942143429,0.03753614,178.8,178.76,0.03915289]
[1747942143927,0.03753614,178.8,178.79,5.5914]
[1747942159421,0.03753614,178.8,178.78,2.0481]
[1747942159622,0.03753614,178.8,178.76,0.03915289]
[1747942160635,5.62873614,178.8,178.77,5.5917]
[1747942160830,0.03753614,178.8,178.76,0.03915289]
[1747942161230,5.592,178.78,178.76,0.03915289]
[1747942161432,0.03753614,178.8,178.76,0.03915289]
[1747942161830,5.592,178.77,178.76,0.03915289]
[1747942162036,0.03753614,178.8,178.76,0.03915289]
[1747942162435,5.5918,178.78,178.76,0.03915289]
[1747942164442,5.5918,178.78,178.76,5.63145289]
[1747942167044,5.5915,178.79,178.76,5.63145289]
[1747942167545,5.5918,178.78,178.76,5.63145289]
[1747942170649,0.03753614,178.8,178.77,5.592]
[1747942171046,0.03753614,178.8,178.76,0.03915289]
[1747942171445,0.03753614,178.8,178.79,5.5914]
[1747942186767,2.0123,178.88,178.85,5.5895]
[1747942187258,5.5886,178.88,178.85,5.5895]
[1747942187766,5.62429067,178.88,178.85,5.62809404]
[1747942188266,5.589,178.87,178.85,0.03859404]
[1747942189570,5.62439067,178.88,178.85,5.62809404]
[1747942189965,0.03569067,178.88,178.85,0.03859404]
[1747942190164,5.5891,178.87,178.85,0.03859404]
[1747942192479,5.5892,178.86,178.85,0.03859404]
[1747942192677,112.96,178.86,178.79,4.37151899]
[1747942192972,1.987,178.85,178.79,4.37151899]
[1747942193167,5.5911,178.8,178.79,4.37151899]
[1747942193762,5.5914,178.79,178.78,0.0414293]
[1747942194373,0.03858239,178.81,178.78,0.0414293]
[1747942195075,5.62968239,178.81,178.78,0.0414293]
[1747942195778,5.5912,178.8,178.78,0.0414293]
[1747942196776,5.62938239,178.81,178.78,5.6331293]
[1747942197373,5.62938239,178.81,178.78,0.0414293]
[1747942198375,0.03858239,178.81,178.78,5.6330293]
[1747942199479,5.62958239,178.81,178.78,5.6330293]
[1747942200281,0.03858239,178.81,178.79,5.5912]
[1747942200675,0.03858239,178.81,178.78,0.0414293]
[1747942201483,5.62948239,178.81,178.78,0.0414293]
[1747942201781,0.03858239,178.81,178.78,0.0414293]
[1747942202179,5.62948239,178.81,178.78,5.6331293]
[1747942202484,0.03858239,178.81,178.78,0.0414293]
[1747942202983,0.03858239,178.81,178.79,5.5912]
[1747942203171,0.03858239,178.81,178.78,0.0414293]
[1747942203582,0.03858239,178.81,178.79,5.5914]
[1747942204681,0.03858239,178.81,178.8,5.5911]
[1747942205684,5.1781127,178.86,178.85,5.5895]
[1747942205874,5.1781127,178.86,178.79,1.9427]
[1747942206078,5.1781127,178.86,178.84,5.5896]
[1747942206278,5.1781127,178.86,178.79,1.9427]
[1747942206478,5.1781127,178.86,178.8,108.2885]
[1747942206682,5.1781127,178.86,178.85,5.5895]
[1747942207184,0.04010724,178.87,178.85,5.5895]
[1747942209786,5.62900724,178.87,178.84,5.5897]
[1747942209981,5.62900724,178.87,178.82,112.9]
[1747942210184,0.04010724,178.87,178.82,112.9]
[1747942210585,0.04010724,178.87,178.85,5.5893]
[1747942211088,0.04010724,178.87,178.84,5.5897]
[1747942211680,0.04010724,178.87,178.85,5.5894]
[1747942212787,0.04010724,178.87,178.86,5.5892]
[1747942213184,0.04010724,178.87,178.85,5.62706474]
[1747942213384,0.04010724,178.87,178.85,0.03766474]
[1747942214085,5.5892,178.86,178.85,0.03766474]
[1747942222795,0.04010724,178.87,178.85,0.03766474]
[1747942223188,0.04010724,178.87,178.85,5.62696474]
[1747942223385,5.62920724,178.87,178.85,0.03766474]
[1747942224297,0.04010724,178.87,178.85,0.03766474]
[1747942225096,0.04010724,178.87,178.85,5.62706474]
[1747942227993,0.04010724,178.87,178.85,0.03766474]
[1747942228597,5.5892,178.86,178.85,0.03766474]
[1747942229400,112.84010724,178.87,178.85,0.03766474]
[1747942229896,5.62920724,178.87,178.85,0.03766474]
[1747942232498,0.04010724,178.87,178.85,0.03766474]
[1747942233096,5.62900724,178.87,178.85,5.62706474]
[1747942233599,5.62900724,178.87,178.85,0.03766474]
[1747942233800,5.5892,178.86,178.85,0.03766474]
[1747942234095,112.8,178.86,178.79,5.5913]
[1747942234299,112.8,178.86,178.78,4.37151899]
[1747942234899,5.5905,178.82,178.8,0.04048459]
[1747942235100,0.04016915,178.83,178.8,0.04048459]
[1747942235600,5.63056915,178.83,178.8,5.63158459]
[1747942235795,5.63056915,178.83,178.8,0.04048459]
[1747942236501,5.63056915,178.83,178.8,5.63148459]
[1747942236702,5.5905,178.82,178.8,0.04048459]
[1747942237002,0.04016915,178.83,178.8,0.04048459]
[1747942237206,5.5908,178.81,178.8,0.04048459]
[1747942241904,5.5905,178.82,178.8,0.04048459]
[1747942242109,0.04016915,178.83,178.81,5.5907]
[1747942243108,5.63036915,178.83,178.8,5.63148459]
[1747942244311,5.63036915,178.83,178.81,5.5907]
[1747942245007,0.04016915,178.83,178.81,5.5907]
[1747942245912,5.63036915,178.83,178.81,5.5907]
[1747942246113,5.63036915,178.83,178.8,5.63148459]
[1747942246917,0.04016915,178.83,178.81,5.5907]
[1747942247512,0.04016915,178.83,178.82,5.5905]
[1747942248617,5.1781127,178.89,178.82,112.82]
[1747942249017,5.1781127,178.89,178.85,5.5893]
[1747942249218,10.7666127,178.89,178.82,112.82]
[1747942249421,0.03807921,178.87,178.84,0.03747434]
[1747942251018,0.03807921,178.87,178.85,5.5895]
[1747942251825,5.62697921,178.87,178.84,5.62707434]
[1747942252924,5.62697921,178.87,178.84,0.03747434]
[1747942253120,0.03807921,178.87,178.84,0.03747434]
[1747942253924,5.62717921,178.87,178.84,0.03747434]
[1747942254220,5.62717921,178.87,178.84,5.62717434]
[1747942254424,0.03807921,178.87,178.84,0.03747434]
[1747942254634,5.5894,178.86,178.84,0.03747434]
[1747942255221,0.03807921,178.87,178.84,0.03747434]
[1747942255428,5.5895,178.85,178.84,7.434e-05]
[1747942255633,9.02970437,178.87,178.76,5.82020817]
[1747942255928,8.99162516,178.87,178.76,5.82020817]
[1747942256528,0.03600707,178.84,178.81,0.03895222]
[1747942256731,112.83600707,178.84,178.81,0.03895222]
[1747942257028,5.5906,178.82,178.81,0.03895222]
[1747942265638,8.99162516,178.83,178.71,117.13151899]
[1747942265843,8.99162516,178.83,178.72,9.5479]
[1747942266142,5.5928,178.75,178.72,9.5479]
[1747942266637,5.5928,178.75,178.72,5.63547639]
[1747942266638,5.63064914,178.75,178.72,5.63547639]
[1747942266838,0.03784914,178.75,178.72,5.63547639]
[1747942267336,5.63064914,178.75,178.72,5.63547639]
[1747942267944,5.63064914,178.75,178.73,5.5933]
[1747942268139,0.03784914,178.75,178.73,5.5933]
[1747942268334,0.03784914,178.75,178.72,0.04207639]
[1747942268535,0.03784914,178.75,178.74,5.593]
[1747942275039,0.03784914,178.75,178.73,5.5932]
[1747942275443,0.03784914,178.75,178.72,0.04207639]
[1747942276547,5.593,178.74,178.72,0.04207639]
[1747942278145,5.5933,178.73,178.72,0.04207639]
[1747942281342,0.03784914,178.75,178.72,0.04207639]
[1747942281846,0.03784914,178.75,178.74,5.593]
[1747942282442,0.03784914,178.75,178.73,5.5933]
[1747942283951,0.03784914,178.75,178.74,5.593]
[1747942285151,5.63054914,178.75,178.73,5.5932]
[1747942285353,5.63054914,178.75,178.72,0.04207639]
[1747942285553,0.03784914,178.75,178.72,0.04207639]
[1747942285751,5.5931,178.74,178.72,0.04207639]
[1747942285960,0.03784914,178.75,178.72,0.04207639]
[1747942286350,5.5933,178.73,178.72,0.04207639]
[1747942298772,5.63064914,178.75,178.72,0.04207639]
[1747942299475,5.63064914,178.75,178.72,5.63557639]
[1747942299663,5.63064914,178.75,178.72,0.04207639]
[1747942300581,5.63064914,178.75,178.73,5.5932]
[1747942301378,0.03784914,178.75,178.73,5.5932]
[1747942301873,5.63054914,178.75,178.73,5.5932]
[1747942302578,0.03784914,178.75,178.72,0.04207639]
[1747942304878,112.76,178.74,178.72,0.04207639]